[Event "Titled Tuesday Blitz July 25 Late 2023"]
[White "AndresDelgado77"]
[Black "Principe, Gerson"]
[BlackFideId "3804550"]
[WhiteElo "2311"]
[BlackElo "2600"]
[Result "0-1"]
[Round "1"]
[TimeControl "180+2"]
[Date "2023.07.25"]
[WhiteClock "0:00:00"]
[BlackClock "0:00:04"]
[Board "135"]

1. e4 {[%clk 0:02:59]}  c5 {[%clk 0:03:00]} 2. Nf3 {[%clk 0:02:59]}  e6 {[%clk 0:03:00]} 3. c3 {[%clk 0:02:58]}  Nf6 {[%clk 0:02:51]} 4. Bd3 {[%clk 0:02:58]}  d5 {[%clk 0:02:51]} 5. e5 {[%clk 0:02:56]}  Nfd7 {[%clk 0:02:51]} 6. Bc2 {[%clk 0:02:56]}  Nc6 {[%clk 0:02:49]} 7. d4 {[%clk 0:02:55]}  Be7 {[%clk 0:02:48]} 8. a3 {[%clk 0:02:50]}  b5 {[%clk 0:02:44]} 9. O-O {[%clk 0:02:44]}  a5 {[%clk 0:02:43]} 10. Re1 {[%clk 0:02:37]}  Ba6 {[%clk 0:02:43]} 11. dxc5 {[%clk 0:02:21]}  Nxc5 {[%clk 0:02:40]} 12. b4 {[%clk 0:02:11]}  Nd7 {[%clk 0:02:35]} 13. g3 {[%clk 0:01:52]}  h6 {[%clk 0:02:33]} 14. h4 {[%clk 0:01:46]}  Rc8 {[%clk 0:02:25]} 15. h5 {[%clk 0:01:44]}  Qc7 {[%clk 0:02:22]} 16. Bf4 {[%clk 0:01:43]}  Nb6 {[%clk 0:02:16]} 17. Ra2 {[%clk 0:01:34]}  Nc4 {[%clk 0:02:07]} 18. Qe2 {[%clk 0:01:09]}  Bb7 {[%clk 0:02:03]} 19. Nbd2 {[%clk 0:00:47]}  Nxd2 {[%clk 0:01:55]} 20. Bxd2 {[%clk 0:00:42]}  Na7 {[%clk 0:01:15]} 21. Nd4 {[%clk 0:00:37]}  Bc6 {[%clk 0:01:15]} 22. Bd3 {[%clk 0:00:34]}  Rb8 {[%clk 0:01:15]} 23. Qg4 {[%clk 0:00:32]}  Kf8 {[%clk 0:01:07]} 24. Qxe6 {[%clk 0:00:30]}  Rb7 {[%clk 0:00:31]} 25. Qf5 {[%clk 0:00:27]}  Ke8 {[%clk 0:00:28]} 26. e6 {[%clk 0:00:26]}  Rf8 {[%clk 0:00:26]} 27. Bf4 {[%clk 0:00:23]}  Qc8 {[%clk 0:00:22]} 28. exf7+ {[%clk 0:00:20]}  Rxf7 {[%clk 0:00:23]} 29. Qxc8+ {[%clk 0:00:19]}  Nxc8 {[%clk 0:00:24]} 30. Bg6 {[%clk 0:00:19]}  Kf8 {[%clk 0:00:20]} 31. Bxf7 {[%clk 0:00:18]}  Kxf7 {[%clk 0:00:20]} 32. Nxc6 {[%clk 0:00:18]}  Bf6 {[%clk 0:00:19]} 33. Ne5+ {[%clk 0:00:16]}  Ke6 {[%clk 0:00:15]} 34. Ng4+ {[%clk 0:00:14]}  Kf7 {[%clk 0:00:14]} 35. Nxf6 {[%clk 0:00:15]}  gxf6 {[%clk 0:00:15]} 36. Rd2 {[%clk 0:00:15]}  axb4 {[%clk 0:00:15]} 37. axb4 {[%clk 0:00:14]}  Ne7 {[%clk 0:00:15]} 38. Bd6 {[%clk 0:00:14]}  Nf5 {[%clk 0:00:15]} 39. Bc5 {[%clk 0:00:14]}  Rd7 {[%clk 0:00:15]} 40. Red1 {[%clk 0:00:13]}  Ke6 {[%clk 0:00:15]} 41. Re1+ {[%clk 0:00:13]}  Kf7 {[%clk 0:00:15]} 42. g4 {[%clk 0:00:13]}  Nh4 {[%clk 0:00:14]} 43. Re3 {[%clk 0:00:12]}  f5 {[%clk 0:00:11]} 44. f3 {[%clk 0:00:09]}  Kf6 {[%clk 0:00:06]} 45. Red3 {[%clk 0:00:06]}  fxg4 {[%clk 0:00:05]} 46. fxg4 {[%clk 0:00:05]}  Rc7 {[%clk 0:00:04]} 47. Bf2 {[%clk 0:00:03]}  Kg5 {[%clk 0:00:04]} 48. Rxd5+ {[%clk 0:00:03]}  Kxg4 {[%clk 0:00:04]} 49. R2d4+ {[%clk 0:00:03]}  Kf3 {[%clk 0:00:05]} 50. Rf5+ {[%clk 0:00:03]}  Nxf5 {[%clk 0:00:05]} 51. Rd3+ {[%clk 0:00:02]}  Ke4 {[%clk 0:00:05]} 52. Rd1 {[%clk 0:00:02]}  Rxc3 {[%clk 0:00:05]} 53. Be1 {[%clk 0:00:01]}  Rb3 {[%clk 0:00:04]} 54. Rc1 {[%clk 0:00:01]}  Ne3 {[%clk 0:00:04]} 55. Rc5 {[%clk 0:00:00]}  Rb2 {[%clk 0:00:04]} 0-1


[Site "https://www.chess.com"]

[Event "Titled Tuesday Blitz July 25 Late 2023"]
[White "Suvorov, Alexander"]
[Black "SicilianPanzer"]
[WhiteFideId "12977063"]
[WhiteElo "2599"]
[BlackElo "2310"]
[Result "1-0"]
[Round "1"]
[TimeControl "180+2"]
[Date "2023.07.25"]
[WhiteClock "0:00:50"]
[BlackClock "0:00:00"]
[Board "136"]

1. e4 {[%clk 0:02:59]}  c5 {[%clk 0:02:59]} 2. Nc3 {[%clk 0:02:59]}  Nc6 {[%clk 0:02:58]} 3. f4 {[%clk 0:02:58]}  g6 {[%clk 0:02:54]} 4. Nf3 {[%clk 0:02:58]}  Bg7 {[%clk 0:02:53]} 5. Bb5 {[%clk 0:02:58]}  e6 {[%clk 0:02:48]} 6. Bxc6 {[%clk 0:02:57]}  bxc6 {[%clk 0:02:47]} 7. e5 {[%clk 0:02:56]}  c4 {[%clk 0:02:35]} 8. Ne4 {[%clk 0:02:52]}  Nh6 {[%clk 0:02:18]} 9. Nd6+ {[%clk 0:02:51]}  Ke7 {[%clk 0:02:18]} 10. Nxc4 {[%clk 0:02:50]}  Ba6 {[%clk 0:02:17]} 11. b3 {[%clk 0:02:49]}  f6 {[%clk 0:02:05]} 12. Ba3+ {[%clk 0:02:37]}  Kf7 {[%clk 0:02:03]} 13. Nd6+ {[%clk 0:02:38]}  Kg8 {[%clk 0:02:04]} 14. Bb2 {[%clk 0:02:36]}  fxe5 {[%clk 0:01:56]} 15. fxe5 {[%clk 0:02:36]}  Nf5 {[%clk 0:01:54]} 16. Ne4 {[%clk 0:02:33]}  Nh4 {[%clk 0:01:47]} 17. c4 {[%clk 0:02:30]}  Nxg2+ {[%clk 0:00:59]} 18. Kf2 {[%clk 0:02:24]}  Nf4 {[%clk 0:00:58]} 19. Ke3 {[%clk 0:02:13]}  Bh6 {[%clk 0:00:53]} 20. Nf6+ {[%clk 0:02:10]}  Kg7 {[%clk 0:00:49]} 21. Kf2 {[%clk 0:02:01]}  Nd3+ {[%clk 0:00:47]} 22. Kg2 {[%clk 0:02:01]}  Nxb2 {[%clk 0:00:46]} 23. Qc2 {[%clk 0:02:01]}  d5 {[%clk 0:00:36]} 24. Qxb2 {[%clk 0:01:56]}  dxc4 {[%clk 0:00:27]} 25. bxc4 {[%clk 0:01:56]}  Qd3 {[%clk 0:00:20]} 26. Rhe1 {[%clk 0:01:50]}  Rhb8 {[%clk 0:00:20]} 27. Qd4 {[%clk 0:01:45]}  Bxc4 {[%clk 0:00:16]} 28. Qc5 {[%clk 0:01:28]}  Rb7 {[%clk 0:00:14]} 29. Qxc6 {[%clk 0:01:26]}  Bd5 {[%clk 0:00:13]} 30. Nxd5 {[%clk 0:01:26]}  Qxd5 {[%clk 0:00:13]} 31. Qxd5 {[%clk 0:01:16]}  exd5 {[%clk 0:00:14]} 32. Rab1 {[%clk 0:01:16]}  Rab8 {[%clk 0:00:14]} 33. Rxb7+ {[%clk 0:01:16]}  Rxb7 {[%clk 0:00:14]} 34. e6 {[%clk 0:01:07]}  Kf6 {[%clk 0:00:13]} 35. d3 {[%clk 0:01:01]}  Rb2+ {[%clk 0:00:12]} 36. Kg3 {[%clk 0:01:01]}  Ke7 {[%clk 0:00:11]} 37. Nd4 {[%clk 0:00:59]}  Bf8 {[%clk 0:00:05]} 38. Nc6+ {[%clk 0:00:57]}  Ke8 {[%clk 0:00:05]} 39. e7 {[%clk 0:00:57]}  Bg7 {[%clk 0:00:05]} 40. Re6 {[%clk 0:00:54]}  Rxa2 {[%clk 0:00:05]} 41. Rd6 {[%clk 0:00:55]}  Be5+ {[%clk 0:00:03]} 42. Nxe5 {[%clk 0:00:55]}  Kxe7 {[%clk 0:00:03]} 43. Rxd5 {[%clk 0:00:56]}  Ke6 {[%clk 0:00:03]} 44. Rc5 {[%clk 0:00:56]}  Re2 {[%clk 0:00:03]} 45. d4 {[%clk 0:00:56]}  Re3+ {[%clk 0:00:03]} 46. Kf2 {[%clk 0:00:56]}  Ra3 {[%clk 0:00:04]} 47. Nc4 {[%clk 0:00:54]}  Ra2+ {[%clk 0:00:04]} 48. Kg3 {[%clk 0:00:54]}  Rc2 {[%clk 0:00:03]} 49. d5+ {[%clk 0:00:52]}  Ke7 {[%clk 0:00:02]} 50. d6+ {[%clk 0:00:51]}  Kd8 {[%clk 0:00:02]} 51. Rc7 {[%clk 0:00:50]}  Rc3+ {[%clk 0:00:02]} 52. Kf4 {[%clk 0:00:50]}  h5 {[%clk 0:00:02]} 53. Ke4 {[%clk 0:00:50]}  Rc2 {[%clk 0:00:01]} 54. Kd3 {[%clk 0:00:50]}  Rxh2 {[%clk 0:00:02]} 55. Rxa7 {[%clk 0:00:49]}  Rh3+ {[%clk 0:00:02]} 56. Kd4 {[%clk 0:00:50]}  Rh1 {[%clk 0:00:02]} 57. Kd5 {[%clk 0:00:49]}  Rd1+ {[%clk 0:00:00]} 58. Kc6 {[%clk 0:00:50]} 1-0


[Site "https://www.chess.com"]

[Event "Titled Tuesday Blitz July 25 Late 2023"]
[White "Sala, Giulia"]
[Black "Hajiyev, Kanan"]
[WhiteFideId "2840451"]
[BlackFideId "13404148"]
[WhiteElo "2302"]
[BlackElo "2589"]
[Result "1-0"]
[Round "1"]
[TimeControl "180+2"]
[Date "2023.07.25"]
[WhiteClock "0:00:08"]
[BlackClock "0:00:06"]
[Board "139"]

1. e4 {[%clk 0:02:53]}  c6 {[%clk 0:02:57]} 2. g3 {[%clk 0:02:45]}  d5 {[%clk 0:02:57]} 3. exd5 {[%clk 0:02:45]}  cxd5 {[%clk 0:02:58]} 4. Bg2 {[%clk 0:02:45]}  Nf6 {[%clk 0:02:59]} 5. Nf3 {[%clk 0:02:45]}  Nc6 {[%clk 0:02:59]} 6. O-O {[%clk 0:02:45]}  Bg4 {[%clk 0:03:00]} 7. d4 {[%clk 0:02:45]}  e6 {[%clk 0:03:00]} 8. h3 {[%clk 0:02:43]}  Bh5 {[%clk 0:02:57]} 9. c3 {[%clk 0:02:43]}  Bd6 {[%clk 0:02:55]} 10. Re1 {[%clk 0:02:40]}  O-O {[%clk 0:02:55]} 11. Qd3 {[%clk 0:02:40]}  Rb8 {[%clk 0:02:44]} 12. Ne5 {[%clk 0:02:37]}  Bxe5 {[%clk 0:02:11]} 13. dxe5 {[%clk 0:02:30]}  Nd7 {[%clk 0:02:11]} 14. f4 {[%clk 0:02:30]}  Nc5 {[%clk 0:02:06]} 15. Qe3 {[%clk 0:02:29]}  Qb6 {[%clk 0:02:01]} 16. Na3 {[%clk 0:02:24]}  Bg6 {[%clk 0:01:56]} 17. g4 {[%clk 0:02:19]}  Be4 {[%clk 0:01:52]} 18. Bxe4 {[%clk 0:02:17]}  Nxe4 {[%clk 0:01:50]} 19. Qxb6 {[%clk 0:02:16]}  axb6 {[%clk 0:01:50]} 20. Be3 {[%clk 0:02:12]}  Nc5 {[%clk 0:01:41]} 21. Nb5 {[%clk 0:02:10]}  f6 {[%clk 0:01:32]} 22. exf6 {[%clk 0:02:07]}  gxf6 {[%clk 0:01:31]} 23. Bxc5 {[%clk 0:02:04]}  bxc5 {[%clk 0:01:29]} 24. Rxe6 {[%clk 0:02:04]}  Rbe8 {[%clk 0:01:20]} 25. Rae1 {[%clk 0:01:58]}  Rxe6 {[%clk 0:01:20]} 26. Rxe6 {[%clk 0:01:58]}  Kf7 {[%clk 0:01:21]} 27. Rd6 {[%clk 0:01:56]}  Rd8 {[%clk 0:01:04]} 28. Kf2 {[%clk 0:01:55]}  Ke7 {[%clk 0:00:57]} 29. Rxd8 {[%clk 0:01:54]}  Nxd8 {[%clk 0:00:57]} 30. Ke3 {[%clk 0:01:52]}  Nc6 {[%clk 0:00:52]} 31. Nc7 {[%clk 0:01:45]}  Kd6 {[%clk 0:00:46]} 32. Ne8+ {[%clk 0:01:44]}  Ke7 {[%clk 0:00:46]} 33. Ng7 {[%clk 0:01:44]}  Na5 {[%clk 0:00:42]} 34. Nf5+ {[%clk 0:01:41]}  Ke6 {[%clk 0:00:43]} 35. b3 {[%clk 0:01:37]}  b5 {[%clk 0:00:43]} 36. h4 {[%clk 0:01:26]}  Nc6 {[%clk 0:00:39]} 37. Ng7+ {[%clk 0:01:23]}  Kf7 {[%clk 0:00:38]} 38. Nf5 {[%clk 0:01:23]}  Ke6 {[%clk 0:00:39]} 39. Kd3 {[%clk 0:01:19]}  c4+ {[%clk 0:00:32]} 40. Ke3 {[%clk 0:01:11]}  Na5 {[%clk 0:00:22]} 41. Nd4+ {[%clk 0:01:07]}  Kd7 {[%clk 0:00:21]} 42. b4 {[%clk 0:01:05]}  Nc6 {[%clk 0:00:17]} 43. Nxb5 {[%clk 0:00:30]}  Ne7 {[%clk 0:00:16]} 44. Nd4 {[%clk 0:00:30]}  Nc8 {[%clk 0:00:10]} 45. a4 {[%clk 0:00:30]}  Nb6 {[%clk 0:00:10]} 46. a5 {[%clk 0:00:27]}  Na8 {[%clk 0:00:10]} 47. Nf5 {[%clk 0:00:25]}  Kc6 {[%clk 0:00:10]} 48. Kd4 {[%clk 0:00:25]}  Nc7 {[%clk 0:00:08]} 49. Ne7+ {[%clk 0:00:21]}  Kd6 {[%clk 0:00:09]} 50. Nf5+ {[%clk 0:00:21]}  Kc6 {[%clk 0:00:09]} 51. Ne7+ {[%clk 0:00:21]}  Kd6 {[%clk 0:00:10]} 52. Nc8+ {[%clk 0:00:21]}  Kc6 {[%clk 0:00:10]} 53. Nb6 {[%clk 0:00:22]}  Nb5+ {[%clk 0:00:10]} 54. Ke3 {[%clk 0:00:20]}  Nxc3 {[%clk 0:00:11]} 55. Nc8 {[%clk 0:00:19]}  Nb5 {[%clk 0:00:09]} 56. Ne7+ {[%clk 0:00:19]}  Kd6 {[%clk 0:00:10]} 57. Nc8+ {[%clk 0:00:19]}  Kc6 {[%clk 0:00:11]} 58. Ne7+ {[%clk 0:00:20]}  Kd6 {[%clk 0:00:11]} 59. Nf5+ {[%clk 0:00:20]}  Ke6 {[%clk 0:00:12]} 60. Ng7+ {[%clk 0:00:20]}  Kd6 {[%clk 0:00:12]} 61. Nf5+ {[%clk 0:00:20]}  Kd7 {[%clk 0:00:09]} 62. Nd4 {[%clk 0:00:20]}  Nd6 {[%clk 0:00:08]} 63. Nf5 {[%clk 0:00:19]}  Nb5 {[%clk 0:00:08]} 64. Nd4 {[%clk 0:00:19]}  Nd6 {[%clk 0:00:08]} 65. b5 {[%clk 0:00:19]}  Kc7 {[%clk 0:00:05]} 66. Ne6+ {[%clk 0:00:19]}  Kd7 {[%clk 0:00:05]} 67. Nd4 {[%clk 0:00:18]}  Kc7 {[%clk 0:00:06]} 68. b6+ {[%clk 0:00:18]}  Kd7 {[%clk 0:00:06]} 69. Nf5 {[%clk 0:00:17]}  Nb5 {[%clk 0:00:03]} 70. Nd4 {[%clk 0:00:16]}  Nd6 {[%clk 0:00:04]} 71. Nc2 {[%clk 0:00:15]}  Kc6 {[%clk 0:00:04]} 72. Kd4 {[%clk 0:00:11]}  Nb5+ {[%clk 0:00:03]} 73. Ke3 {[%clk 0:00:12]}  Kb7 {[%clk 0:00:04]} 74. Nd4 {[%clk 0:00:11]}  Nd6 {[%clk 0:00:05]} 75. Nf5 {[%clk 0:00:11]}  Nb5 {[%clk 0:00:05]} 76. Ne7 {[%clk 0:00:11]}  d4+ {[%clk 0:00:05]} 77. Kd2 {[%clk 0:00:12]}  c3+ {[%clk 0:00:04]} 78. Kc2 {[%clk 0:00:12]}  Ka6 {[%clk 0:00:04]} 79. Nc6 {[%clk 0:00:10]}  d3+ {[%clk 0:00:02]} 80. Kxd3 {[%clk 0:00:09]}  Nd6 {[%clk 0:00:03]} 81. Kxc3 {[%clk 0:00:08]}  Ne4+ {[%clk 0:00:03]} 82. Kd4 {[%clk 0:00:08]}  Nf2 {[%clk 0:00:04]} 83. g5 {[%clk 0:00:07]}  fxg5 {[%clk 0:00:05]} 84. hxg5 {[%clk 0:00:07]}  Ng4 {[%clk 0:00:06]} 85. Ke4 {[%clk 0:00:07]}  Nf2+ {[%clk 0:00:06]} 86. Kf3 {[%clk 0:00:07]}  Nd3 {[%clk 0:00:06]} 87. Ne7 {[%clk 0:00:07]}  Nc5 {[%clk 0:00:07]} 88. Nd5 {[%clk 0:00:07]}  Nd7 {[%clk 0:00:08]} 89. f5 {[%clk 0:00:07]}  Kxa5 {[%clk 0:00:08]} 90. f6 {[%clk 0:00:08]}  Nxb6 {[%clk 0:00:08]} 91. Nxb6 {[%clk 0:00:07]}  Kxb6 {[%clk 0:00:09]} 92. f7 {[%clk 0:00:07]}  Kc7 {[%clk 0:00:06]} 93. f8=Q {[%clk 0:00:08]} 1-0


[Site "https://www.chess.com"]

[Event "Titled Tuesday Blitz July 25 Late 2023"]
[White "Bullen, Alex"]
[Black "Dobrikov, Marco"]
[WhiteFideId "1801627"]
[BlackFideId "12950378"]
[WhiteElo "2298"]
[BlackElo "2588"]
[Result "0-1"]
[Round "1"]
[TimeControl "180+2"]
[Date "2023.07.25"]
[WhiteClock "0:00:00"]
[BlackClock "0:00:23"]
[Board "141"]

1. c3 {[%clk 0:02:57]}  f5 {[%clk 0:02:58]} 2. g3 {[%clk 0:02:47]}  Nf6 {[%clk 0:02:56]} 3. Bg2 {[%clk 0:02:46]}  e5 {[%clk 0:02:57]} 4. d4 {[%clk 0:02:45]}  e4 {[%clk 0:02:57]} 5. h4 {[%clk 0:02:43]}  d5 {[%clk 0:02:57]} 6. Bg5 {[%clk 0:02:42]}  Be6 {[%clk 0:02:53]} 7. e3 {[%clk 0:02:41]}  Nbd7 {[%clk 0:02:44]} 8. Nh3 {[%clk 0:02:40]}  c6 {[%clk 0:02:44]} 9. Nf4 {[%clk 0:02:38]}  Bf7 {[%clk 0:02:44]} 10. c4 {[%clk 0:02:33]}  dxc4 {[%clk 0:02:43]} 11. Nc3 {[%clk 0:02:29]}  h6 {[%clk 0:02:43]} 12. Bxf6 {[%clk 0:02:28]}  Nxf6 {[%clk 0:02:44]} 13. Bf1 {[%clk 0:02:22]}  Bb4 {[%clk 0:02:39]} 14. Be2 {[%clk 0:02:19]}  Qa5 {[%clk 0:02:38]} 15. O-O {[%clk 0:02:10]}  Bxc3 {[%clk 0:02:34]} 16. bxc3 {[%clk 0:02:11]}  b5 {[%clk 0:02:32]} 17. a4 {[%clk 0:02:03]}  Qxc3 {[%clk 0:02:32]} 18. axb5 {[%clk 0:01:55]}  cxb5 {[%clk 0:02:33]} 19. Qb1 {[%clk 0:01:48]}  a6 {[%clk 0:02:28]} 20. Rc1 {[%clk 0:01:37]}  Qb3 {[%clk 0:02:28]} 21. Qxb3 {[%clk 0:01:33]}  cxb3 {[%clk 0:02:29]} 22. Bxb5+ {[%clk 0:01:33]}  Kf8 {[%clk 0:01:55]} 23. Rxa6 {[%clk 0:01:32]}  Rxa6 {[%clk 0:01:52]} 24. Bxa6 {[%clk 0:01:33]}  Kg8 {[%clk 0:01:52]} 25. Bc4 {[%clk 0:01:18]}  g5 {[%clk 0:01:17]} 26. hxg5 {[%clk 0:01:06]}  hxg5 {[%clk 0:01:18]} 27. Ne2 {[%clk 0:01:04]}  Bxc4 {[%clk 0:00:47]} 28. Rxc4 {[%clk 0:01:03]}  Nd5 {[%clk 0:00:48]} 29. Nc3 {[%clk 0:00:58]}  b2 {[%clk 0:00:44]} 30. Nb1 {[%clk 0:00:47]}  Kg7 {[%clk 0:00:41]} 31. Rc5 {[%clk 0:00:41]}  Ra8 {[%clk 0:00:32]} 32. Rxd5 {[%clk 0:00:34]}  Ra1 {[%clk 0:00:33]} 33. Rb5 {[%clk 0:00:30]}  Rxb1+ {[%clk 0:00:34]} 34. Kg2 {[%clk 0:00:30]}  Kf6 {[%clk 0:00:32]} 35. Rb6+ {[%clk 0:00:25]}  Ke7 {[%clk 0:00:32]} 36. Kh2 {[%clk 0:00:26]}  Kd7 {[%clk 0:00:31]} 37. Kg2 {[%clk 0:00:17]}  Kc7 {[%clk 0:00:32]} 38. Rb3 {[%clk 0:00:16]}  Kc6 {[%clk 0:00:32]} 39. Kh2 {[%clk 0:00:11]}  Kd5 {[%clk 0:00:32]} 40. Kg2 {[%clk 0:00:08]}  Kc4 {[%clk 0:00:33]} 41. Rb8 {[%clk 0:00:09]}  Kc3 {[%clk 0:00:31]} 42. d5 {[%clk 0:00:09]}  Rd1 {[%clk 0:00:28]} 43. Rc8+ {[%clk 0:00:06]}  Kd3 {[%clk 0:00:25]} 44. Rb8 {[%clk 0:00:01]}  b1=Q {[%clk 0:00:26]} 45. Rxb1 {[%clk 0:00:01]}  Rxb1 {[%clk 0:00:27]} 46. d6 {[%clk 0:00:00]}  g4 {[%clk 0:00:23]} 0-1


[Site "https://www.chess.com"]

[Event "Titled Tuesday Blitz July 25 Late 2023"]
[White "Barwinska, Ewa"]
[Black "Ozates, Tuna"]
[WhiteFideId "21833761"]
[BlackFideId "6354521"]
[WhiteElo "2287"]
[BlackElo "2574"]
[Result "1-0"]
[Round "1"]
[TimeControl "180+2"]
[Date "2023.07.25"]
[WhiteClock "0:00:16"]
[BlackClock "0:00:00"]
[Board "145"]

1. e4 {[%clk 0:02:55]}  c5 {[%clk 0:02:57]} 2. Nf3 {[%clk 0:02:53]}  Nc6 {[%clk 0:02:57]} 3. d4 {[%clk 0:02:53]}  cxd4 {[%clk 0:02:58]} 4. Nxd4 {[%clk 0:02:53]}  Nf6 {[%clk 0:02:59]} 5. Nc3 {[%clk 0:02:53]}  e5 {[%clk 0:02:59]} 6. Ndb5 {[%clk 0:02:51]}  d6 {[%clk 0:02:59]} 7. Bg5 {[%clk 0:02:50]}  a6 {[%clk 0:02:59]} 8. Na3 {[%clk 0:02:51]}  b5 {[%clk 0:02:58]} 9. Bxf6 {[%clk 0:02:51]}  gxf6 {[%clk 0:02:55]} 10. Nd5 {[%clk 0:02:51]}  f5 {[%clk 0:02:51]} 11. Bd3 {[%clk 0:02:33]}  f4 {[%clk 0:02:42]} 12. Qh5 {[%clk 0:02:23]}  Be6 {[%clk 0:02:38]} 13. g3 {[%clk 0:01:58]}  fxg3 {[%clk 0:02:21]} 14. fxg3 {[%clk 0:01:57]}  Rc8 {[%clk 0:02:19]} 15. O-O {[%clk 0:01:56]}  Bg7 {[%clk 0:02:08]} 16. Rad1 {[%clk 0:01:45]}  O-O {[%clk 0:02:08]} 17. c3 {[%clk 0:01:28]}  h6 {[%clk 0:01:43]} 18. Nc2 {[%clk 0:01:24]}  Qg5 {[%clk 0:01:39]} 19. Qxg5 {[%clk 0:01:24]}  hxg5 {[%clk 0:01:40]} 20. Nce3 {[%clk 0:01:24]}  Rfe8 {[%clk 0:01:30]} 21. Nf5 {[%clk 0:01:20]}  Bxf5 {[%clk 0:01:14]} 22. Rxf5 {[%clk 0:01:20]}  f6 {[%clk 0:00:46]} 23. Nxf6+ {[%clk 0:01:10]}  Bxf6 {[%clk 0:00:47]} 24. Rxf6 {[%clk 0:01:11]}  Kg7 {[%clk 0:00:41]} 25. Rxd6 {[%clk 0:01:10]}  Red8 {[%clk 0:00:42]} 26. Be2 {[%clk 0:01:03]}  Rxd6 {[%clk 0:00:36]} 27. Rxd6 {[%clk 0:01:04]}  b4 {[%clk 0:00:34]} 28. Bxa6 {[%clk 0:00:41]}  Rc7 {[%clk 0:00:33]} 29. Bb5 {[%clk 0:00:39]}  bxc3 {[%clk 0:00:32]} 30. bxc3 {[%clk 0:00:36]}  Na5 {[%clk 0:00:28]} 31. Rd7+ {[%clk 0:00:35]}  Rxd7 {[%clk 0:00:26]} 32. Bxd7 {[%clk 0:00:36]}  Nc4 {[%clk 0:00:27]} 33. a4 {[%clk 0:00:32]}  Kf6 {[%clk 0:00:24]} 34. Kf2 {[%clk 0:00:23]}  Ke7 {[%clk 0:00:19]} 35. Bc6 {[%clk 0:00:24]}  Kd6 {[%clk 0:00:13]} 36. Bd5 {[%clk 0:00:24]}  Na5 {[%clk 0:00:10]} 37. Ke3 {[%clk 0:00:22]}  g4 {[%clk 0:00:10]} 38. Kd3 {[%clk 0:00:19]}  Kc5 {[%clk 0:00:09]} 39. Be6 {[%clk 0:00:18]}  Nc6 {[%clk 0:00:05]} 40. Bxg4 {[%clk 0:00:18]}  Nd8 {[%clk 0:00:03]} 41. Bd7 {[%clk 0:00:17]}  Nf7 {[%clk 0:00:00]} 42. Be6 {[%clk 0:00:16]} 1-0


[Site "https://www.chess.com"]

[Event "Titled Tuesday Blitz July 25 Late 2023"]
[White "Broca Jimenez, Fernando"]
[Black "Golubev, Mikhail"]
[WhiteFideId "5104742"]
[BlackFideId "14100983"]
[WhiteElo "2273"]
[BlackElo "2564"]
[Result "1-0"]
[Round "1"]
[TimeControl "180+2"]
[Date "2023.07.25"]
[WhiteClock "0:00:04"]
[BlackClock "0:00:00"]
[Board "151"]

1. e4 {[%clk 0:02:59]}  c5 {[%clk 0:03:00]} 2. c3 {[%clk 0:02:54]}  d5 {[%clk 0:02:56]} 3. exd5 {[%clk 0:02:52]}  Nf6 {[%clk 0:02:57]} 4. d4 {[%clk 0:02:53]}  Nxd5 {[%clk 0:02:54]} 5. Nf3 {[%clk 0:02:51]}  e6 {[%clk 0:02:49]} 6. Bd3 {[%clk 0:02:39]}  Nc6 {[%clk 0:02:40]} 7. O-O {[%clk 0:02:37]}  Be7 {[%clk 0:02:35]} 8. dxc5 {[%clk 0:02:17]}  Bxc5 {[%clk 0:02:27]} 9. Bg5 {[%clk 0:02:17]}  Be7 {[%clk 0:02:13]} 10. Bxe7 {[%clk 0:02:04]}  Qxe7 {[%clk 0:02:14]} 11. Nbd2 {[%clk 0:02:01]}  O-O {[%clk 0:02:12]} 12. Re1 {[%clk 0:01:49]}  Rd8 {[%clk 0:02:08]} 13. Qc2 {[%clk 0:01:48]}  h6 {[%clk 0:02:05]} 14. Be4 {[%clk 0:01:38]}  Qc7 {[%clk 0:01:48]} 15. Nb3 {[%clk 0:01:29]}  Nf6 {[%clk 0:01:44]} 16. Rad1 {[%clk 0:01:00]}  Bd7 {[%clk 0:01:42]} 17. Nc5 {[%clk 0:00:54]}  Be8 {[%clk 0:01:37]} 18. Bd3 {[%clk 0:00:47]}  Rac8 {[%clk 0:01:29]} 19. Ne4 {[%clk 0:00:47]}  Nd5 {[%clk 0:01:18]} 20. Ng3 {[%clk 0:00:35]}  Nf4 {[%clk 0:01:04]} 21. Bf1 {[%clk 0:00:33]}  b6 {[%clk 0:00:48]} 22. Ne2 {[%clk 0:00:31]}  Nd5 {[%clk 0:00:17]} 23. Ned4 {[%clk 0:00:23]}  Nxd4 {[%clk 0:00:14]} 24. Nxd4 {[%clk 0:00:24]}  Nf6 {[%clk 0:00:14]} 25. g3 {[%clk 0:00:22]}  a5 {[%clk 0:00:13]} 26. Bg2 {[%clk 0:00:20]}  b5 {[%clk 0:00:11]} 27. Nf3 {[%clk 0:00:18]}  Rxd1 {[%clk 0:00:10]} 28. Rxd1 {[%clk 0:00:19]}  b4 {[%clk 0:00:09]} 29. c4 {[%clk 0:00:08]}  Qxc4 {[%clk 0:00:07]} 30. Qd2 {[%clk 0:00:09]}  Qc7 {[%clk 0:00:06]} 31. Bf1 {[%clk 0:00:09]}  Bc6 {[%clk 0:00:04]} 32. Qd6 {[%clk 0:00:08]}  Qxd6 {[%clk 0:00:03]} 33. Rxd6 {[%clk 0:00:09]}  Bxf3 {[%clk 0:00:04]} 34. h3 {[%clk 0:00:04]}  Rc1 {[%clk 0:00:02]} 35. Rd2 {[%clk 0:00:04]}  Be4 {[%clk 0:00:01]} 36. f3 {[%clk 0:00:03]}  Bxf3 {[%clk 0:00:01]} 37. Kf2 {[%clk 0:00:04]}  Be4 {[%clk 0:00:00]} 38. Bb5 {[%clk 0:00:04]} 1-0


[Site "https://www.chess.com"]

[Event "Titled Tuesday Blitz July 25 Late 2023"]
[White "Schut, Han"]
[Black "Al-Tarboush, Ward"]
[WhiteFideId "1005561"]
[BlackFideId "7601450"]
[WhiteElo "2272"]
[BlackElo "2563"]
[Result "0-1"]
[Round "1"]
[TimeControl "180+2"]
[Date "2023.07.25"]
[WhiteClock "0:00:11"]
[BlackClock "0:00:58"]
[Board "153"]

1. e4 {[%clk 0:03:00]}  c5 {[%clk 0:02:59]} 2. Nf3 {[%clk 0:02:59]}  e6 {[%clk 0:02:59]} 3. c4 {[%clk 0:02:59]}  d5 {[%clk 0:02:53]} 4. exd5 {[%clk 0:02:58]}  exd5 {[%clk 0:02:53]} 5. cxd5 {[%clk 0:02:58]}  Nf6 {[%clk 0:02:54]} 6. Nc3 {[%clk 0:02:58]}  Bg4 {[%clk 0:02:50]} 7. Qa4+ {[%clk 0:02:45]}  Nbd7 {[%clk 0:02:47]} 8. Ne5 {[%clk 0:02:42]}  Qe7 {[%clk 0:02:26]} 9. f4 {[%clk 0:02:39]}  Kd8 {[%clk 0:02:16]} 10. d6 {[%clk 0:02:13]}  Qe8 {[%clk 0:02:13]} 11. Bb5 {[%clk 0:02:05]}  Bxd6 {[%clk 0:02:07]} 12. O-O {[%clk 0:01:51]}  Bxe5 {[%clk 0:02:04]} 13. fxe5 {[%clk 0:01:52]}  Qxe5 {[%clk 0:02:04]} 14. Qa5+ {[%clk 0:00:54]}  b6 {[%clk 0:01:58]} 15. Qa6 {[%clk 0:00:53]}  Qd4+ {[%clk 0:01:44]} 16. Kh1 {[%clk 0:00:53]}  Re8 {[%clk 0:01:30]} 17. Bxd7 {[%clk 0:00:39]}  Qxd7 {[%clk 0:01:15]} 18. d4 {[%clk 0:00:34]}  cxd4 {[%clk 0:01:12]} 19. Nb5 {[%clk 0:00:35]}  Be2 {[%clk 0:01:09]} 20. Rxf6 {[%clk 0:00:13]}  gxf6 {[%clk 0:01:00]} 21. a4 {[%clk 0:00:11]}  Bxb5 {[%clk 0:00:58]} 22. axb5 {[%clk 0:00:11]}  Re1# {[%clk 0:00:58]} 0-1


[Site "https://www.chess.com"]